bitfinex/quotes_SOLUSD_20260120
["timestamp","ask_amount","ask_price","bid_price","bid_amount"]
[1768908118830,1.68881754,128.98,128.95,1.67914971]
[1768908120740,5.38174731,128.97,128.94,1.87914971]
[1768908120946,5.38793244,128.97,128.94,1.87914971]
[1768908122940,1.68881754,128.97,128.94,1.87914971]
[1768908123139,1.68881754,128.97,128.94,9.63455776]
[1768908126255,5.38793244,128.97,128.94,1.87914971]
[1768908126633,1.68881754,128.97,128.94,1.87914971]
[1768908126935,5.38793244,128.97,128.94,1.87914971]
[1768908129343,5.38793244,128.97,128.94,9.63465623]
[1768908130034,7.75218744,129.0,128.94,9.63465623]
[1768908130035,5.38793244,128.99,128.95,1.67914971]
[1768908130238,1.68881754,128.98,128.95,1.67914971]
[1768908130949,5.38793244,128.99,128.95,1.67914971]
[1768908132074,5.38793244,128.98,128.95,1.67914971]
[1768908133754,3.6991149,128.96,128.93,1.77914971]
[1768908134065,3.6991149,128.96,128.93,9.5350153]
[1768908134253,5.38793244,128.97,128.93,9.5350153]
[1768908134446,1.68881754,128.96,128.93,9.5350153]
[1768908134644,1.68881754,128.96,128.93,1.77914971]
[1768908135365,5.38793244,128.96,128.93,1.77914971]
[1768908135559,1.68881754,128.96,128.93,9.53525105]
[1768908140073,1.68881754,128.96,128.94,1.67914971]
[1768908140979,1.68881754,128.96,128.93,1.77914971]
[1768908141672,1.68881754,128.97,128.93,1.77914971]
[1768908142781,1.68881754,128.97,128.94,1.65721201]
[1768908144774,1.35441677,128.94,128.93,0.1]
[1768908144980,5.05353167,128.94,128.93,0.1]
[1768908145781,4.99353167,128.94,128.93,0.1]
[1768908148185,1.29441677,128.94,128.93,0.1]
[1768908148373,4.99353167,128.94,128.93,0.1]
[1768908148780,3.6991149,128.94,128.93,0.1]
[1768908149177,5.05353167,128.95,128.93,0.1]
[1768908151784,1.35441677,128.95,128.93,0.1]
[1768908152891,1.35441677,128.95,128.93,1.37691557]
[1768908153672,1.29441676,128.95,128.93,1.37691557]
[1768908155203,3.6991149,128.94,128.91,0.1]
[1768908155494,3.6991149,128.92,128.9,0.1]
[1768908155695,1.35441677,128.91,128.9,0.1]
[1768908160294,1.35441677,128.92,128.9,0.1]
[1768908173008,1.14649985,128.96,128.92,1.14843129]
[1768908173214,1.14649985,128.96,128.93,1.02584394]
[1768908173512,1.14649985,128.96,128.9,1.12584394]
[1768908173831,1.09482817,128.93,128.91,1.02584394]
[1768908174023,1.09482817,128.93,128.9,1.12584394]
[1768908174701,1.09482817,128.93,128.9,8.88353567]
[1768908175820,4.79394307,128.93,128.9,8.88353567]
[1768908176019,1.09482817,128.91,128.9,0.1]
[1768908178717,1.09482817,128.9,128.88,0.1]
[1768908178904,4.73394308,128.9,128.88,0.1]
[1768908179104,3.6991149,128.9,128.88,0.1]
[1768908179305,7.75644071,128.93,128.88,0.1]
[1768908179505,3.6991149,128.9,128.88,0.1]
[1768908180319,7.75644071,128.93,128.88,0.1]
[1768908180530,3.6991149,128.9,128.88,0.1]
[1768908180928,4.79782023,128.9,128.88,0.1]
[1768908181133,3.70299206,128.91,128.88,1.12584394]
[1768908181440,1.09482817,128.9,128.88,1.12584394]
[1768908181621,1.03482818,128.9,128.88,1.12584394]
[1768908184124,4.79782023,128.91,128.88,1.12584394]
[1768908185446,1.09482817,128.91,128.88,1.12584394]
[1768908188560,1.03482818,128.91,128.88,1.12584394]
[1768908190425,3.70299206,128.91,128.88,1.12584394]
[1768908190624,1.09482817,128.9,128.88,1.12584394]
[1768908190821,1.03482818,128.9,128.88,1.12584394]
[1768908191645,25.88632838,128.97,128.89,1.02584394]
[1768908191847,3.70299206,128.92,128.88,1.12584394]
[1768908192161,3.70299206,128.92,128.89,1.02584394]
[1768908192849,1.09482817,128.92,128.89,1.02584394]
[1768908194953,4.79782023,128.92,128.89,1.02584394]
[1768908197843,1.09482817,128.89,128.87,9.77080582]
[1768908198037,4.79782023,128.89,128.87,9.77080582]
[1768908198242,4.79782023,128.89,128.87,10.79664976]
[1768908198639,4.79782023,128.9,128.87,10.79664976]
[1768908206854,4.08901497,128.88,128.86,0.1]
[1768908207062,3.70299206,128.87,128.85,0.94183957]
[1768908207250,4.08901497,128.88,128.85,0.94183957]
[1768908207453,3.70299206,128.87,128.85,0.94183957]
[1768908207770,4.08061131,128.87,128.84,0.94183957]
[1768908208145,3.70299206,128.87,128.84,0.94183957]
[1768908211052,4.05597505,128.87,128.84,0.94183957]
[1768908216977,3.70299206,128.86,128.84,0.94183957]
[1768908217151,4.05597505,128.87,128.84,0.94183957]
[1768908221777,0.31107162,128.84,128.81,1.04183957]
[1768908222072,4.01406368,128.84,128.81,1.04183957]
[1768908224565,0.30164565,128.83,128.81,0.1]
[1768908224765,0.24164566,128.83,128.81,0.1]
[1768908225165,3.70299206,128.84,128.81,0.99243104]
[1768908226664,3.93553284,128.84,128.81,0.99243104]
[1768908227659,0.22957528,128.85,128.81,0.99243104]
[1768908227877,3.93256734,128.84,128.81,0.99243104]
[1768908228063,3.70299206,128.84,128.81,0.99243104]
[1768908228263,3.93256734,128.85,128.82,0.89243104]
[1768908229176,3.92963589,128.84,128.81,0.99243104]
[1768908229359,0.22664383,128.84,128.81,0.99243104]
[1768908229558,3.70299206,128.85,128.81,0.99243104]
[1768908229773,3.92673811,128.85,128.81,0.99243104]
[1768908230360,0.22374605,128.85,128.82,0.89243104]
[1768908230570,3.92673811,128.85,128.82,0.89243104]
[1768908231366,0.22374605,128.85,128.82,0.89243104]
[1768908232186,3.70299206,128.86,128.82,0.89243104]
[1768908232679,3.9210722,128.88,128.84,0.89243104]
[1768908233278,24.73855376,128.91,128.82,0.81301799]
[1768908233279,3.91553569,128.86,128.82,0.81301799]
[1768908233480,3.70299206,128.85,128.82,0.81301799]
[1768908233880,3.91553569,128.86,128.82,0.81301799]
[1768908240189,0.21254363,128.86,128.82,0.81301799]
[1768908240501,3.91553569,128.86,128.82,0.81301799]
[1768908242905,3.9181568,128.86,128.82,0.81301799]
[1768908243204,3.89231431,128.86,128.82,0.81301799]
[1768908244596,3.70561317,128.83,128.8,0.91301799]
[1768908244798,0.08427732,128.84,128.81,0.81301799]
[1768908245002,3.78989049,128.84,128.81,0.81301799]
[1768908245302,0.08427732,128.84,128.81,0.81301799]
[1768908245692,3.78989049,128.84,128.81,0.81301799]
[1768908246298,0.08427732,128.84,128.81,0.81301799]
[1768908246489,3.78989049,128.84,128.81,0.81301799]
[1768908246677,0.08427732,128.84,128.81,0.81301799]
[1768908246882,3.78989049,128.84,128.81,0.81301799]
[1768908251210,0.08427732,128.84,128.81,0.81301799]
[1768908251392,3.77293146,128.83,128.8,0.1]
[1768908251587,3.77293146,128.83,128.8,0.91301799]
[1768908251907,3.70561317,128.82,128.8,0.91301799]
[1768908254009,3.76527872,128.82,128.8,0.1]
[1768908255784,3.76032227,128.81,128.78,0.81301799]
[1768908255991,3.70561317,128.8,128.78,0.81301799]
[1768908256191,3.64561318,128.8,128.78,0.81301799]
[1768908257307,3.64561318,128.8,128.77,1.14283039]
[1768908258206,3.70561317,128.8,128.77,1.14283039]
[1768908258803,3.70561317,128.82,128.78,0.81301799]
[1768908262121,7.76226245,128.83,128.78,0.81301799]
[1768908262711,3.70561317,128.82,128.78,0.81301799]
[1768908264823,7.76156473,128.84,128.79,0.79909302]
[1768908265030,3.70561317,128.82,128.79,17.02]
[1768908265215,3.70561317,128.82,128.8,0.79909302]
[1768908267031,3.70561317,128.83,128.8,0.79909302]
[1768908269716,92.1,128.85,128.82,0.79909302]
[1768908269922,92.1,128.85,128.84,0.79909302]
[1768908270534,3.70561317,128.87,128.84,0.79909302]
[1768908271035,3.70561317,128.85,128.8,17.81909302]
[1768908271240,3.70561317,128.84,128.81,0.79909302]
[1768908271739,3.70561317,128.85,128.81,0.79909302]
[1768908272418,3.70561317,128.84,128.81,0.79909302]
[1768908275739,7.76036008,128.86,128.81,0.79909302]
[1768908276037,3.70561317,128.84,128.81,0.79909302]
[1768908277644,3.70561317,128.85,128.81,0.79909302]
[1768908278355,99.85996146,128.87,128.82,0.79909302]
[1768908278560,99.85996146,128.87,128.83,17.81909302]
[1768908278753,3.70561317,128.86,128.84,0.79909302]
[1768908279754,99.85979503,128.87,128.84,0.79909302]
[1768908279949,103.5654082,128.87,128.84,0.79909302]
[1768908281257,5.34408856,128.87,128.8,0.79909302]
[1768908281434,3.70561317,128.84,128.8,0.79909302]
[1768908281748,3.70561317,128.87,128.82,0.79909302]
[1768908281940,49.51902687,128.89,128.83,0.79909302]
[1768908282140,3.70561317,128.86,128.83,0.79909302]
[1768908283939,11.4659891,128.86,128.83,0.79909302]
[1768908289360,3.70561317,128.85,128.81,0.81810536]
[1768908289559,3.70561317,128.85,128.81,17.83810536]
[1768908289772,3.70561317,128.85,128.82,0.81810536]
[1768908290766,11.4659891,128.86,128.82,0.81810536]
[1768908292566,3.70561317,128.86,128.82,0.81810536]
[1768908292767,7.76007373,128.87,128.82,0.81810536]
[1768908293060,3.70561317,128.86,128.82,0.81810536]
[1768908294871,3.70561317,128.87,128.83,0.79098817]
[1768908295075,103.56508134,128.88,128.83,0.79098817]
[1768908295373,5.20386843,128.87,128.83,0.79098817]
[1768908296470,92.1,128.88,128.84,0.79098817]
[1768908297065,3.70561317,128.89,128.84,0.79098817]
[1768908297283,3.70561317,128.89,128.85,0.79098817]
[1768908300264,99.85732188,128.92,128.87,0.79098817]
[1768908300480,5.20085102,128.91,128.87,0.79098817]
[1768908300657,3.70561317,128.92,128.88,0.79098817]
[1768908301459,3.70561317,128.91,128.88,0.79098817]
[1768908303766,7.7564583,128.93,128.88,0.79098817]
[1768908303974,3.70561317,128.92,128.88,0.79098817]
[1768908304893,3.70197516,128.92,128.88,0.79098817]
[1768908305387,3.70197516,128.91,128.88,0.79098817]
[1768908305760,3.70197516,128.89,128.85,0.79098817]
[1768908305965,3.70197516,128.88,128.85,0.79098817]
[1768908306784,5.34408856,128.92,128.85,0.79098817]
[1768908307080,3.70197516,128.89,128.86,0.79098817]
[1768908307463,5.34408856,128.92,128.86,0.79098817]
[1768908307765,5.19581633,128.91,128.86,0.79098817]
[1768908307965,3.70197516,128.9,128.86,0.79098817]
[1768908309886,3.70197516,128.91,128.87,0.79098817]
[1768908310088,3.70197516,128.92,128.87,0.79098817]
[1768908310394,3.70197516,128.91,128.88,0.79098817]
[1768908313081,7.75686279,128.92,128.88,0.79098817]
[1768908313392,3.70197516,128.91,128.88,0.79098817]
[1768908318076,95.80197516,128.94,128.89,0.79098817]
[1768908318275,95.80197516,128.94,128.89,4.49296333]
[1768908318479,95.80197516,128.94,128.9,0.79098817]
[1768908320293,92.1,128.94,128.91,0.79098817]
[1768908320501,95.80197516,128.94,128.91,0.79098817]
[1768908323396,3.70197516,128.94,128.91,0.79098817]
[1768908324807,3.70197516,128.95,128.91,0.79098817]
[1768908326081,100.05390853,128.97,128.91,7.75724867]
[1768908326282,3.70197516,128.95,128.92,0.72414333]
[1768908332134,3.70197516,128.93,128.88,0.72414333]
[1768908332324,3.70197516,128.91,128.88,0.72414333]
[1768908332508,27.14241726,128.95,128.88,0.72414333]
[1768908332509,3.70197516,128.9,128.88,0.72414333]
[1768908337547,27.14230321,128.95,128.88,0.72414333]
[1768908337750,3.70197516,128.9,128.88,0.72414333]
[1768908342248,7.75614674,128.93,128.88,0.72414333]
[1768908342557,3.70197516,128.91,128.88,0.72414333]
[1768908343755,3.70197516,128.93,128.89,0.75400129]
[1768908344057,3.70197516,128.93,128.9,0.75400129]
[1768908344352,3.70197516,128.91,128.85,0.75400129]
[1768908344548,3.70197516,128.88,128.85,0.75400129]
[1768908344746,3.70197516,128.93,128.88,0.75400129]
[1768908344951,3.70197516,128.93,128.89,0.75400129]
[1768908345545,3.70197516,128.93,128.9,0.75400129]
[1768908346835,3.70197516,128.94,128.9,0.75400129]
[1768908349356,7.75521556,128.95,128.9,0.75400129]
[1768908349661,11.45719072,128.95,128.9,0.75400129]
[1768908350238,99.85459424,128.96,128.91,0.75400129]
[1768908350559,3.70197516,128.96,128.93,0.75400129]
[1768908350860,7.95396042,128.97,128.93,0.72400131]
[1768908351062,8.90740801,128.96,128.93,0.72400131]
[1768908351356,3.70197516,128.96,128.93,0.72400131]
[1768908352057,7.95396042,128.97,128.93,0.72400131]
[1768908352262,3.90197516,128.97,128.93,0.72400131]
[1768908353051,0.2,128.97,128.93,0.72400131]
[1768908353245,3.90197516,128.97,128.93,0.72400131]
[1768908354859,0.2,128.97,128.94,3.70197516]
[1768908355160,0.28185418,129.0,128.96,0.75644263]
[1768908355368,3.98382934,129.0,128.96,0.75644263]
[1768908355950,0.28185418,129.0,128.96,0.75644263]
[1768908357442,3.98382934,129.0,128.96,0.75644263]
[1768908358466,3.78251029,128.99,128.95,0.75644263]
[1768908358770,3.78251029,128.97,128.94,0.75644263]
[1768908358962,3.70197516,128.97,128.94,0.75644263]
[1768908359867,3.70197516,128.96,128.94,0.75644263]
[1768908361957,3.70197516,128.95,128.91,0.75644263]
[1768908362151,3.70197516,128.93,128.91,0.75644263]
[1768908362758,3.70197516,128.93,128.92,0.75644263]
[1768908362963,3.70197516,128.94,128.92,0.75644263]
[1768908364974,3.70095129,128.94,128.92,0.75644263]
[1768908365579,3.70095129,128.94,128.9,0.75644263]
[1768908365774,3.70095129,128.94,128.91,17.0]
[1768908365956,3.70095129,128.94,128.91,17.75644263]
[1768908366274,3.70095129,128.94,128.92,0.75644263]
[1768908366577,3.70095129,128.95,128.92,0.75644263]
[1768908367381,3.70095129,128.96,128.93,0.75644263]
[1768908367873,92.1,128.98,128.93,0.75644263]
[1768908368074,3.70095129,128.96,128.93,0.75644263]
[1768908368278,3.70095129,128.97,128.93,0.75644263]
[1768908368779,92.1,128.98,128.95,0.75644263]
[1768908368964,3.70095129,129.0,128.96,0.75644263]
[1768908369964,3.70095129,128.99,128.97,0.75644263]
[1768908377878,0.77550815,129.0,128.97,0.75644263]
[1768908378085,3.70095129,128.99,128.97,0.75644263]
[1768908381883,4.47645944,129.0,128.97,0.75644263]
[1768908382388,3.70095129,129.0,128.97,0.75644263]
[1768908382687,3.70095129,129.01,128.98,0.75644263]
[1768908384072,4.47616265,129.02,128.98,0.75644263]
[1768908384277,3.70095129,129.02,129.0,0.75490586]
[1768908384589,3.70095129,129.02,129.0,0.72490587]
[1768908385772,3.70095129,129.02,128.94,17.0]
[1768908385773,0.72493085,129.0,128.94,17.0]
[1768908385983,3.70095129,128.97,128.95,17.0]
[1768908386383,3.70095129,128.97,128.96,0.75490586]
[1768908386683,3.70095129,128.97,128.95,17.0]
[1768908387171,3.70095129,128.97,128.95,24.75464328]
[1768908388206,0.73409714,128.99,128.95,24.75464328]
[1768908388398,3.70095129,128.97,128.95,24.75464328]
[1768908388701,3.70095129,128.97,128.96,0.75490586]
[1768908389702,3.70095129,128.97,128.94,0.75490586]
[1768908389703,4.43504843,128.97,128.94,0.75490586]
[1768908390004,3.70095129,128.96,128.94,0.75490586]
[1768908392783,4.43504843,128.97,128.94,0.75490586]
[1768908392982,3.70095129,128.96,128.94,0.75490586]
[1768908394310,92.0512208,129.0,128.96,0.75490586]
[1768908394477,4.43504843,129.0,128.97,0.75490586]
[1768908394792,110.69318254,129.03,128.97,0.75490586]
[1768908395003,4.43504843,129.01,128.97,0.75490586]
[1768908395407,0.73409714,129.0,128.97,0.75490586]
[1768908396811,0.73409714,128.97,128.92,0.75490586]
[1768908397111,3.70095129,128.95,128.93,0.75490586]
[1768908397491,4.43504843,128.96,128.93,0.75490586]
[1768908398630,3.70095129,128.97,128.94,0.75490586]
[1768908399020,4.43504843,129.0,128.96,0.75490586]
[1768908399229,0.73409714,129.03,128.97,0.75490586]
[1768908399395,3.70095129,129.01,128.98,17.75490586]
[1768908399790,4.43504843,129.02,128.98,17.75490586]
[1768908400390,3.70095129,129.01,128.98,17.75490586]
[1768908402013,4.43504843,129.0,128.96,0.75490586]
[1768908402214,3.70095129,128.99,128.97,17.0]
[1768908403196,3.70095129,128.99,128.97,17.75490586]
[1768908403802,4.43504843,129.0,128.97,17.75490586]
[1768908404814,4.43504843,129.0,128.97,0.75490586]
[1768908407006,0.73409714,129.0,128.97,0.75490586]
[1768908407213,4.43504843,129.0,128.97,0.75490586]
[1768908407417,4.43504843,129.0,128.89,13.02953773]
[1768908407418,0.73948282,128.99,128.89,13.02953773]
[1768908407716,3.70095129,128.95,128.93,0.74643969]
[1768908407915,3.70095129,128.95,128.93,17.74643969]
[1768908409709,0.73948282,128.96,128.93,17.74643969]
[1768908410007,3.70095129,128.95,128.93,17.74643969]
[1768908410210,0.73948282,128.96,128.93,17.74643969]
[1768908410410,4.44043411,128.96,128.93,17.74643969]
[1768908411602,0.73948282,128.98,128.94,0.74643969]
[1768908411912,3.70095129,128.97,128.94,0.74643969]
[1768908412097,3.70095129,128.96,128.93,8.50237601]
[1768908412294,3.70095129,128.96,128.94,17.74643969]
[1768908412495,4.44043411,128.97,128.94,17.74643969]
[1768908413640,4.39705906,128.96,128.94,17.0]
[1768908413926,4.39705906,128.96,128.93,17.70716716]
[1768908414506,3.70095129,128.95,128.93,17.70716716]
[1768908414726,3.70095129,128.95,128.93,17.0]
[1768908414924,3.70095129,128.95,128.93,17.70716716]
[1768908415427,4.39705906,128.96,128.93,17.70716716]
[1768908416415,4.33705905,128.96,128.93,17.70716716]
[1768908416615,4.33705905,128.96,128.93,25.46329072]
[1768908416808,3.70095129,128.96,128.93,25.46329072]
[1768908417009,3.70095129,128.98,128.94,0.70716716]
[1768908418032,3.70095129,128.96,128.93,17.0]
[1768908418531,3.70095129,128.96,128.93,25.46330896]
[1768908418532,4.39705906,128.96,128.93,25.46330896]
[1768908420933,0.69610777,128.96,128.93,8.46330896]
[1768908421108,4.39705906,128.96,128.94,17.0]
[1768908424416,0.69610777,128.96,128.94,17.0]
[1768908424617,4.39705906,128.96,128.94,17.0]
[1768908425538,0.69610777,128.96,128.94,17.0]
[1768908426234,0.69610777,128.94,128.88,0.70716716]
[1768908426436,0.69610777,128.94,128.9,0.70716716]
[1768908426437,0.69610777,128.93,128.9,0.70716716]
[1768908426628,0.69610777,128.93,128.9,8.46477349]
[1768908427321,0.69610777,128.94,128.9,8.46477349]
[1768908427836,4.39709218,128.94,128.9,8.46477349]
[1768908428663,0.69610777,128.94,128.9,8.46477349]
[1768908428847,4.39709218,128.94,128.9,8.46477349]
[1768908430546,7.75405036,128.97,128.91,0.70716716]
[1768908430733,4.39709218,128.96,128.92,17.70716716]
[1768908431748,0.69610777,128.95,128.92,8.46387191]
[1768908431947,0.69610777,128.93,128.9,7.75780375]
[1768908432333,0.69610777,128.93,128.9,8.46497091]
[1768908432934,0.69610777,128.93,128.9,0.70716716]
[1768908433136,4.39709218,128.93,128.89,25.46557927]
[1768908433325,0.69610777,128.93,128.9,8.46507765]
[1768908435647,4.39709218,128.94,128.9,8.46507765]
[1768908436141,0.69610777,128.93,128.9,8.46507765]
[1768908436339,0.69610777,128.93,128.86,38.80058069]
[1768908436340,0.69610777,128.93,128.85,9.38898074]
[1768908436550,0.69610777,128.93,128.89,0.70716716]
[1768908436863,0.69610777,128.93,128.9,0.70716716]
[1768908437755,4.39709218,128.93,128.9,0.70716716]
[1768908446967,0.71377317,128.9,128.86,0.73351574]
[1768908447147,95.01810807,128.96,128.86,17.73351574]
[1768908447148,3.70098441,128.89,128.86,17.73351574]
[1768908448237,7.75702786,128.92,128.86,25.49386804]
[1768908448436,3.70098441,128.89,128.86,25.49386804]
[1768908448864,3.70098441,128.89,128.86,17.73351574]
[1768908449667,9.34619119,128.95,128.87,0.73351574]
[1768908449856,0.71377317,128.97,128.91,0.73351574]
[1768908450050,0.71377317,128.95,128.92,17.0]
[1768908450372,4.41475758,128.95,128.92,17.0]
[1768908450670,0.71377317,128.94,128.92,17.0]
[1768908454869,4.41475758,128.96,128.92,17.73351574]
[1768908455079,4.41475758,128.97,128.93,0.73351574]
[1768908455367,0.71377317,128.97,128.93,0.73351574]
[1768908456760,4.41475758,128.99,128.94,4.43450015]
[1768908456966,4.41475758,128.99,128.95,17.73351574]
[1768908457466,0.71377317,129.0,128.96,0.73351574]
[1768908457769,4.41475758,129.0,128.96,0.73351574]
[1768908458689,0.71377317,129.0,128.96,0.73351574]
[1768908458975,0.71377317,129.0,128.96,8.48780053]
[1768908460261,0.71377317,129.0,128.97,0.73351574]
[1768908460462,4.41475758,129.01,128.98,17.73351574]
[1768908460669,0.71377317,129.01,128.98,17.70351575]
[1768908460868,4.41475758,129.01,128.98,17.70351575]
[1768908462376,0.71377317,129.01,128.98,17.70351575]
[1768908462574,8.46413454,129.03,128.99,0.73351574]
[1768908462773,0.2,129.04,129.0,0.73351574]
[1768908462972,0.2,129.04,128.99,7.75249767]
[1768908462973,0.2,129.04,129.01,17.73351574]
[1768908464377,3.90098441,129.04,129.01,17.73351574]
[1768908469256,3.70098441,129.03,129.01,17.73351574]
[1768908469988,0.2,129.04,129.01,17.73351574]
[1768908470166,3.70098441,129.03,129.01,17.73351574]
[1768908473979,0.61248566,129.01,128.97,7.75330008]
[1768908474155,3.70098441,129.02,129.0,0.61798378]
[1768908475181,0.61248566,129.03,129.0,0.61798378]
[1768908475379,3.90098441,129.04,129.01,0.61798378]
[1768908475576,3.90098441,129.04,129.02,0.61798378]
[1768908475779,3.90098441,129.04,129.01,17.59798378]
[1768908478371,0.2,129.04,129.01,17.59798378]
[1768908478571,3.90098441,129.04,129.01,17.59798378]
[1768908479084,0.2,129.04,129.02,0.61798378]
[1768908479286,3.90098441,129.04,129.02,0.61798378]
[1768908480570,3.90098441,129.04,129.02,0.58798382]
[1768908481084,3.90098441,129.04,128.98,23.08340198]
[1768908481085,4.31347007,129.03,128.99,24.73237422]
[1768908481284,3.70098441,129.03,128.99,7.75237422]
[1768908481468,3.70098441,129.03,129.0,7.75169099]
[1768908482785,3.70098441,129.03,129.01,0.61798378]
[1768908483686,0.81248566,129.04,129.01,0.61798378]
[1768908483988,3.70098441,129.03,129.01,0.61798378]
[1768908485086,3.70098441,129.03,129.01,0.58798379]
[1768908486684,4.51347007,129.04,129.01,0.58798379]
[1768908486877,4.5080763,129.04,129.01,0.58798379]
[1768908487767,0.81248566,129.04,129.01,0.58798379]
[1768908488484,0.2,129.04,129.02,0.61798378]
[1768908489187,0.2,129.05,129.03,0.61798378]
[1768908489486,1e-08,129.1,129.04,16.46823694]
[1768908489667,1e-08,129.1,129.09,3.69559064]
[1768908489869,1e-08,129.11,129.09,7.74653342]
[1768908490068,1e-08,129.11,129.09,30.80845762]
[1768908490482,1e-08,129.11,129.1,3.69559064]
[1768908490884,1e-08,129.11,129.09,30.80845762]
[1768908491191,0.2,129.12,129.09,30.80845762]
[1768908492676,0.81248566,129.12,129.09,7.74653342]
[1768908493575,0.81248566,129.12,129.09,11.44212406]
[1768908494786,0.81248566,129.12,129.1,3.69559064]
[1768908497195,0.81248566,129.12,129.11,3.69559064]
[1768908499692,0.2,129.14,129.11,3.69559064]
[1768908501072,91.51712366,129.17,129.13,3.69559064]
[1768908501277,91.51712366,129.17,129.14,3.69559064]
[1768908501600,0.61248566,129.18,129.16,3.69559064]
[1768908505703,0.61248566,129.18,129.15,3.69559064]
[1768908508708,0.61248566,129.18,129.14,4.31357442]
[1768908510097,0.61248566,129.18,129.15,4.35062075]
[1768908510397,0.61248566,129.18,129.15,3.69559064]
[1768908510706,0.61248566,129.18,129.14,4.35062075]
[1768908511101,0.61248566,129.18,129.12,8.39950487]
[1768908511102,7.74119834,129.18,129.12,8.39950487]
[1768908511309,0.64521078,129.17,129.13,3.69559064]
[1768908512215,0.64521078,129.17,129.13,4.35062075]
[1768908512710,0.64521078,129.17,129.13,0.65503011]
[1768908512908,0.64521078,129.17,129.13,4.35062075]
[1768908514902,0.64521078,129.17,129.13,12.09472908]
[1768908523223,0.64521078,129.17,129.14,3.69559064]
[1768908525622,0.64521078,129.17,129.14,4.36085224]
[1768908526205,0.64521078,129.17,129.15,3.69559064]
[1768908526728,0.64521078,129.17,129.14,0.6652616]
[1768908527930,0.64521078,129.17,129.14,8.40873641]
[1768908534832,0.84439409,129.19,129.15,0.66714681]
[1768908535020,0.64439409,129.18,129.15,0.66714681]
[1768908535628,0.64439409,129.18,129.14,8.41062162]
[1768908536135,0.64439409,129.18,129.14,7.74347481]
[1768908537559,0.64439409,129.18,129.14,8.41062162]
[1768908538346,0.64439409,129.18,129.13,8.41084725]
[1768908538527,0.64439409,129.17,129.12,7.74429014]
[1768908538841,0.64439409,129.16,129.12,7.74429014]
[1768908539220,0.64439409,129.16,129.12,8.41143695]
[1768908540346,0.64439409,129.16,129.13,0.66714681]
[1768908540648,0.64439409,129.17,129.14,0.66714681]
[1768908541345,0.64439409,129.17,129.13,0.66714681]
[1768908541534,0.64439409,129.17,129.13,4.36273745]
[1768908542036,0.64439409,129.17,129.13,7.74354708]
[1768908542341,0.64439409,129.17,129.12,8.41160537]
[1768908542523,0.64439409,129.16,129.12,8.41160537]
[1768908542719,4.33998473,129.16,129.09,7.74608779]
[1768908542924,0.64439409,129.13,129.09,7.74608779]
[1768908543142,0.64439409,129.13,129.09,8.4132346]
[1768908549935,0.64439409,129.11,129.06,0.66714681]
[1768908550135,0.64439409,129.1,129.06,8.41518149]
[1768908551860,0.5843941,129.1,129.06,8.41518149]
[1768908552054,3.68935316,129.1,129.04,7.74934743]
[1768908552355,3.68935316,129.09,129.04,8.41649424]
[1768908552662,3.68935316,129.08,129.04,0.66714681]
[1768908553855,4.33374725,129.08,129.04,0.66714681]
[1768908555535,0.64439409,129.08,129.04,0.66714681]
[1768908555740,4.33374725,129.08,129.04,0.66714681]
[1768908556347,0.64439409,129.07,129.04,0.66714681]
[1768908558753,4.33374725,129.07,129.04,0.66714681]
[1768908558948,0.64439409,129.07,129.04,0.66714681]
[1768908561163,0.64439409,129.07,129.03,7.74983774]
[1768908561370,0.64439409,129.07,129.03,8.41698455]
[1768908561666,0.64439409,129.06,129.02,7.75054882]
[1768908561864,0.64439409,129.04,129.01,0.66714681]
[1768908562049,0.5843941,129.04,129.01,0.66714681]
[1768908562761,0.5843941,129.04,129.0,0.76714681]
[1768908562950,3.68935316,129.04,129.0,0.1]
[1768908563561,3.68935316,129.03,129.0,0.1]
[1768908563778,91.31712366,129.06,129.0,0.1]
[1768908563959,0.69063493,129.01,129.0,0.1]
[1768908565067,0.69063493,129.05,129.01,0.1536583]
[1768908565366,0.69063493,129.04,129.0,0.1]
[1768908566576,0.63063494,129.04,129.0,0.1]
[1768908567271,0.57063495,129.04,129.0,0.61304933]
[1768908569175,0.57063495,129.04,129.0,8.36458835]
[1768908569964,0.57063495,129.04,129.0,27.23138398]
[1768908570154,0.69063493,129.06,129.01,4.2077067]
[1768908570354,0.69063493,129.07,129.03,4.2077067]
[1768908571081,0.69063493,129.07,129.03,11.95739143]
[1768908572863,0.69063493,129.07,129.03,8.26803827]
[1768908575078,0.69063493,129.07,129.02,7.75043962]
[1768908575262,0.69063493,129.05,129.02,7.75043962]
[1768908575461,0.63063494,129.05,129.02,7.75043962]
[1768908575661,0.63063494,129.05,129.02,8.35074798]
[1768908579281,0.74555466,129.06,129.02,8.35074798]
[1768908583793,0.71319789,129.04,129.0,0.7337304]
[1768908583970,4.34255106,129.02,129.0,0.1]
[1768908584282,4.28255107,129.02,129.0,0.1]
[1768908584680,0.59319791,129.02,129.0,0.1]
[1768908586491,4.28255107,129.02,129.0,0.1]
[1768908588268,0.59319791,129.02,129.0,0.1]
[1768908588469,0.71319789,129.05,129.01,4.39123685]